fUST/lending_fUST_20240724
["ID","MTS","AMOUNT","RATE_DAILY","PERIOD"]
[333018988,1721751031698,-300.0,9.998e-05,2]
[333018990,1721751031712,-195.0,9.998e-05,2]
[333018992,1721751031721,-154.80649189,9.999e-05,2]
[333018994,1721751031730,-30.7673081,9.999e-05,2]
[333018996,1721751031741,-218.06694362,9.999e-05,2]
[333018998,1721751031750,-414.61537087,9.999e-05,2]
[333019001,1721751031769,-364.25666549,9.999e-05,2]
[333019003,1721751031779,-154.80649189,9.999e-05,2]
[333019005,1721751031788,-209.65653934,9.999e-05,2]
[333019008,1721751031798,-375.64530467,9.999e-05,2]
[333019010,1721751031807,-413.48920953,9.999e-05,2]
[333019012,1721751031817,-208.55751505,9.999e-05,2]
[333019014,1721751031826,-156.44936091,9.999e-05,2]
[333019016,1721751031835,-350.77118343,9.999e-05,2]
[333019018,1721751031844,-64.07172813,9.999e-05,2]
[333019176,1721751037739,-137.3418244,9.999e-05,2]
[333019177,1721751037748,-143.52084686,9.999e-05,2]
[333019196,1721751043000,-221.40882757,9.999e-05,2]
[333019197,1721751043009,-567.99228217,9.999e-05,2]
[333019198,1721751043019,-162.90193781,9.999e-05,2]
[333019199,1721751043029,-319.40039305,9.999e-05,2]
[333019200,1721751043038,-848.53287184,9.999e-05,2]
[333019201,1721751043047,-542.52748339,9.999e-05,2]
[333019202,1721751043058,-201.273204,9.999e-05,2]
[333019203,1721751043070,-24900.0,0.00010151,2]
[333019204,1721751043081,-250.0,0.00010759,2]
[333019205,1721751043092,-185.395926,0.00010782,2]
[333019206,1721751043101,-185.395926,0.00010812,2]
[333019207,1721751043112,-185.395926,0.00010842,2]
[333019208,1721751043122,-185.395926,0.00010871,2]
[333019209,1721751043134,-185.395926,0.00010901,2]
[333019210,1721751043144,-185.395926,0.0001093,2]
[333019212,1721751043156,-185.395926,0.0001096,2]
[333019213,1721751043166,-185.395926,0.00010989,2]
[333019214,1721751043175,-420.0,0.00010998,2]
[333019215,1721751043185,-185.395926,0.00011019,2]
[333019216,1721751043194,-185.395926,0.00011048,2]
[333019217,1721751043204,-185.395926,0.00011078,2]
[333019218,1721751043214,-185.395926,0.00011108,2]
[333019219,1721751043223,-185.395926,0.00011137,2]
[333019220,1721751043233,-185.395926,0.00011167,2]
[333019221,1721751043242,-185.395926,0.00011196,2]
[333019222,1721751043252,-185.395926,0.00011226,2]
[333019223,1721751043261,-185.395926,0.00011255,2]
[333019224,1721751043270,-185.395926,0.00011285,2]
[333019225,1721751043279,-185.395926,0.00011315,2]
[333019226,1721751043289,-185.395926,0.00011344,2]
[333019227,1721751043298,-151.0,0.00012098,2]
[333019228,1721751043309,-327.29078272,0.0001322,2]
[333019229,1721751043320,-3513.23178767,0.00013349,2]
[333019238,1721751045852,-1792.25022713,0.00013349,2]
[333019240,1721751045861,-200.0,0.00013425,2]
[333019242,1721751045870,-1066.04615448,0.00013598,2]
[333019243,1721751045880,-8286.81767874,0.00013678,2]
[333019389,1721752232099,-419.24097497,9.898e-05,2]
[333019391,1721752232116,-161.77586624,9.898e-05,2]
[333019394,1721752232126,-300.0,9.998e-05,2]
[333019395,1721752232138,-154.80649189,9.999e-05,2]
[333019396,1721752232150,-542.52748339,9.999e-05,2]
[333019397,1721752232161,-156.44936091,9.999e-05,2]
[333019398,1721752232172,-262.82689789,9.999e-05,2]
[333019399,1721752232182,-154.82195475,9.999e-05,2]
[333019400,1721752232192,-248.83425172,9.999e-05,2]
[333019401,1721752232203,-848.53287184,9.999e-05,2]
[333019402,1721752232213,-162.90193781,9.999e-05,2]
[333019403,1721752232222,-375.64530467,9.999e-05,2]
[333019404,1721752232232,-567.99228217,9.999e-05,2]
[333019405,1721752232241,-778.87203636,9.999e-05,2]
[333019406,1721752232251,-201.273204,9.999e-05,2]
[333019407,1721752232261,-208.55751505,9.999e-05,2]
[333019408,1721752232271,-129.73476606,9.999e-05,2]
[333019653,1721752238196,-79.92177328,9.999e-05,2]
[333019654,1721752238207,-319.40039305,9.999e-05,2]
[333019655,1721752238217,-413.48920953,9.999e-05,2]
[333019656,1721752238228,-420.87919964,0.00011328,2]
[333019657,1721752238254,-11925.94455116,0.00011328,2]
[333019935,1721753432148,-726.04240188,9.999e-05,2]
[333019936,1721753432159,-155.96369074,9.999e-05,2]
[333019937,1721753432169,-375.64530467,9.999e-05,2]
[333019938,1721753432179,-498.29652688,9.999e-05,2]
[333019939,1721753432189,-245.43993983,9.999e-05,2]
[333019940,1721753432199,-156.44936091,9.999e-05,2]
[333019941,1721753432210,-567.99228217,9.999e-05,2]
[333019942,1721753432221,-307.9394709,9.999e-05,2]
[333019943,1721753432230,-271.17022618,9.999e-05,2]
[333019944,1721753432240,-380.23735956,9.999e-05,2]
[333019945,1721753432251,-444.48205735,9.999e-05,2]
[333019946,1721753432263,-208.55751505,9.999e-05,2]
[333019947,1721753432274,-778.87203636,9.999e-05,2]
[333019948,1721753432284,-232.09593758,9.999e-05,2]
[333019949,1721753432302,-181.39327195,9.999e-05,2]
[333019950,1721753432314,-248.83425172,9.999e-05,2]
[333019951,1721753432323,-201.273204,9.999e-05,2]
[333019952,1721753432338,-341.69630942,9.999e-05,2]
[333019953,1721753432350,-182.0045066,9.999e-05,2]
[333019954,1721753432363,-159.69180282,9.999e-05,2]
[333019955,1721753432372,-209.65653934,9.999e-05,2]
[333019956,1721753432383,-419.240975,0.00010604,2]
[333019958,1721753432395,-347.3234687,0.00011077,2]
[333019960,1721753432407,-1381.85528514,0.00011211,2]
[333019962,1721753432419,-2094.60505015,0.00011211,2]
[333020038,1721753438321,-1407.27630486,0.00011211,2]
[333020040,1721753438334,-185.22736502,0.00011328,2]
[333020042,1721753438344,-154.80649189,0.00011328,2]
[333020044,1721753438354,-7880.90146447,0.00011328,2]
[333020046,1721753438365,-2075.65589102,0.00011328,2]
[333020049,1721753438377,-5748.00496909,0.00011328,2]
[333020051,1721753438390,-313.75784162,0.00011328,2]
[333020052,1721753438399,-10331.91910381,0.00011803,2]
[333020170,1721753447614,-209.65653934,9.999e-05,2]
[333020171,1721753447623,-61.16034321,0.00011803,2]
[333020172,1721753447636,-1099.7731875,0.00011803,2]
[333020310,1721754633176,-2733.7336231,9.414e-05,2]
[333020311,1721754633187,-300.0,9.724e-05,2]
[333020312,1721754633198,-300.0,9.724e-05,2]
[333020313,1721754633208,-4527.68291433,9.725e-05,2]
[333020314,1721754633238,-20372.31708567,9.725e-05,2]
[333020315,1721754633248,-337.6370591,9.999e-05,2]
[333020316,1721754633259,-208.55751505,9.999e-05,2]
[333020317,1721754633268,-567.99228217,9.999e-05,2]
[333020318,1721754633279,-156.44936091,9.999e-05,2]
[333020319,1721754633290,-778.87203636,9.999e-05,2]
[333020320,1721754633301,-248.83425172,9.999e-05,2]
[333020321,1721754633313,-318.64061189,9.999e-05,2]
[333020322,1721754633323,-482.64809805,9.999e-05,2]
[333020323,1721754633333,-313.1910387,9.999e-05,2]
[333020324,1721754633343,-209.65653934,9.999e-05,2]
[333020325,1721754633353,-156.572996,9.999e-05,2]
[333020326,1721754633365,-154.80649189,9.999e-05,2]
[333020327,1721754633375,-522.77658891,9.999e-05,2]
[333020328,1721754633387,-253.533236,9.999e-05,2]
[333020329,1721754633398,-533.38063441,9.999e-05,2]
[333020330,1721754633408,-600.24609405,9.999e-05,2]
[333020331,1721754633421,-531.35557493,9.999e-05,2]
[333020332,1721754633431,-156.65797586,9.999e-05,2]
[333020333,1721754633442,-287.48002697,0.0001,2]
[333020334,1721754633452,-196.188987,0.00010021,2]
[333020335,1721754633463,-196.188987,0.00010544,2]
[333020336,1721754633474,-420.0,0.00010697,2]
[333020337,1721754633484,-367.43102405,0.00011586,2]
[333020338,1721754633495,-206.56203548,0.00011703,2]
[333020339,1721754633507,-5305.4820148,0.00011715,2]
[333020340,1721754633518,-587.0,0.00011766,2]
[333020341,1721754633527,-150.0,0.00011766,2]
[333020342,1721754633537,-218.09499306,0.00011803,2]
[333020343,1721754633552,-2106.31551891,0.00011803,2]
[333020344,1721754633562,-165.85817016,0.00011803,2]
[333020345,1721754633573,-155.93800576,0.00011803,2]
[333020346,1721754633582,-1625.30319851,0.00011803,2]
[333020347,1721754633592,-151.0,0.00011803,2]
[333020348,1721754633603,-620.55326,0.00011803,2]
[333020349,1721754633613,-620.55326,0.00011803,2]
[333020350,1721754633624,-151.0,0.00011803,2]
[333020351,1721754633635,-151.0,0.00011803,2]
[333020352,1721754633645,-151.0,0.00011803,2]
[333020353,1721754633655,-151.0,0.00011803,2]
[333020354,1721754633667,-167.191849,0.00011803,2]
[333020355,1721754633677,-151.0,0.00011803,2]
[333020356,1721754633690,-167.191849,0.00011803,2]
[333020357,1721754633703,-151.0,0.00011803,2]
[333020358,1721754633715,-151.0,0.00011803,2]
[333020359,1721754633726,-151.0,0.00011803,2]
[333020360,1721754633739,-275.633339,0.00011803,2]
[333020361,1721754633751,-275.633339,0.00011803,2]
[333020362,1721754633762,-275.633339,0.00011803,2]
[333020363,1721754633776,-275.633339,0.00011803,2]
[333020364,1721754633789,-2591.601626,0.00011803,2]
[333020365,1721754633800,-2591.601626,0.00011803,2]
[333020366,1721754633811,-2591.601626,0.00011803,2]
[333020367,1721754633822,-2591.601626,0.00011803,2]
[333020368,1721754633832,-241.819556,0.00011803,2]
[333020369,1721754633842,-346.629972,0.00011803,2]
[333020370,1721754633853,-346.629972,0.00011803,2]
[333020371,1721754633864,-346.629972,0.00011803,2]
[333020372,1721754633875,-346.629972,0.00011803,2]
[333020373,1721754633886,-151.0,0.00011803,2]
[333020374,1721754633897,-151.0,0.00011803,2]
[333020375,1721754633908,-3776.426534,0.00011803,2]
[333020376,1721754633920,-960.822296,0.00011803,2]
[333020377,1721754633931,-960.822296,0.00011803,2]
[333020378,1721754633941,-960.822296,0.00011803,2]
[333020379,1721754633951,-960.822296,0.00011803,2]
[333020380,1721754633961,-1656.406451,0.00011803,2]
[333020381,1721754633972,-1656.406451,0.00011803,2]
[333020382,1721754633983,-1656.406451,0.00011803,2]
[333020383,1721754633993,-1656.406451,0.00011803,2]
[333020384,1721754634003,-151.0,0.00011803,2]
[333020385,1721754634014,-151.0,0.00011803,2]
[333020386,1721754634024,-151.0,0.00011803,2]
[333020387,1721754634034,-151.0,0.00011803,2]
[333020388,1721754634043,-151.0,0.00011803,2]
[333020389,1721754634054,-151.0,0.00011803,2]
[333020390,1721754634063,-151.0,0.00011803,2]
[333020391,1721754634074,-151.0,0.00011803,2]
[333020392,1721754634085,-366.782039,0.00011803,2]
[333020393,1721754634095,-366.782039,0.00011803,2]
[333020394,1721754634106,-366.782039,0.00011803,2]
[333020395,1721754634116,-366.782039,0.00011803,2]
[333020396,1721754634127,-366.782039,0.00011803,2]
[333020397,1721754634137,-366.782039,0.00011803,2]
[333020398,1721754634148,-366.782039,0.00011803,2]
[333020399,1721754634157,-366.782039,0.00011803,2]
[333020400,1721754634170,-173.910764,0.00011803,2]
[333020401,1721754634181,-173.910764,0.00011803,2]
[333020402,1721754634191,-173.910764,0.00011803,2]
[333020403,1721754634202,-173.910764,0.00011803,2]
[333020404,1721754634212,-173.910764,0.00011803,2]
[333020405,1721754634222,-173.910764,0.00011803,2]
[333020406,1721754634232,-173.910764,0.00011803,2]
[333020407,1721754634242,-173.910764,0.00011803,2]
[333020408,1721754634252,-151.0,0.00011803,2]
[333020409,1721754634261,-283.180212,0.00011803,2]
[333020410,1721754634271,-153.0,0.00012042,2]
[333020411,1721754634281,-228.8874327,0.00012042,2]
[333020412,1721754634292,-587.513356,0.00012042,2]
[333020413,1721754634302,-208.6428005,0.00012078,2]
[333020414,1721754634312,-153.0,0.00012078,2]
[333020415,1721754634322,-151.0,0.00012094,2]
[333020416,1721754634333,-151.0,0.00012094,2]
[333020417,1721754634343,-229.524074,0.00012094,2]
[333020418,1721754634353,-229.524074,0.00012094,2]
[333020419,1721754634364,-626.570546,0.00012094,2]
[333020420,1721754634374,-626.570546,0.00012094,2]
[333020421,1721754634384,-151.0,0.00012094,2]
[333020422,1721754634394,-151.0,0.00012094,2]
[333020423,1721754634404,-151.0,0.00012094,2]
[333020424,1721754634414,-620.55326,0.00012094,2]
[333020425,1721754634426,-620.55326,0.00012094,2]
[333020426,1721754634436,-151.0,0.00012094,2]
[333020427,1721754634446,-151.0,0.00012094,2]
[333020428,1721754634457,-167.191849,0.00012094,2]
[333020429,1721754634467,-151.0,0.00012094,2]
[333020430,1721754634477,-167.191849,0.00012094,2]
[333020431,1721754634487,-151.0,0.00012094,2]
[333020432,1721754634497,-151.0,0.00012094,2]
[333020433,1721754634508,-275.633339,0.00012094,2]
[333020434,1721754634518,-275.633339,0.00012094,2]
[333020435,1721754634528,-196.71439081,0.00012094,2]
[333020436,1721754634552,-858.56905389,0.00012094,2]
[333020508,1721754638786,-273.37336231,9.9e-05,2]
[333020509,1721754638797,-1536.3181813,0.00012094,2]
[333020510,1721754638806,-2591.601626,0.00012094,2]
[333020511,1721754638815,-346.629972,0.00012094,2]
[333020512,1721754638824,-346.629972,0.00012094,2]
[333020513,1721754638833,-960.822296,0.00012094,2]
[333020514,1721754638843,-960.822296,0.00012094,2]
[333020516,1721754638852,-1656.406451,0.00012094,2]
[333020517,1721754638862,-1656.406451,0.00012094,2]
[333020519,1721754638873,-151.0,0.00012094,2]
[333020521,1721754638885,-151.0,0.00012094,2]
[333020523,1721754638895,-366.782039,0.00012094,2]
[333020525,1721754638907,-366.782039,0.00012094,2]
[333020527,1721754638917,-366.782039,0.00012094,2]
[333020530,1721754638929,-366.782039,0.00012094,2]
[333020532,1721754638940,-173.910764,0.00012094,2]
[333020534,1721754638950,-173.910764,0.00012094,2]
[333020536,1721754638962,-173.910764,0.00012094,2]
[333020538,1721754638973,-173.910764,0.00012094,2]
[333020540,1721754638985,-620.55326,0.0001218,2]
[333020542,1721754638995,-620.55326,0.0001218,2]
[333020544,1721754639005,-155.80642,0.0001218,2]
[333020546,1721754639015,-151.0,0.0001218,2]
[333020548,1721754639025,-167.191849,0.0001218,2]
[333020551,1721754639036,-151.0,0.0001218,2]
[333020553,1721754639046,-167.191849,0.0001218,2]
[333020555,1721754639058,-151.0,0.0001218,2]
[333020557,1721754639069,-151.0,0.0001218,2]
[333020559,1721754639081,-275.633339,0.0001218,2]
[333020561,1721754639092,-275.633339,0.0001218,2]
[333020564,1721754639103,-2591.601626,0.0001218,2]
[333020566,1721754639114,-2591.601626,0.0001218,2]
[333020567,1721754639124,-346.629972,0.0001218,2]
[333020569,1721754639134,-346.629972,0.0001218,2]
[333020571,1721754639143,-960.822296,0.0001218,2]
[333020572,1721754639153,-960.822296,0.0001218,2]
[333020574,1721754639162,-1656.406451,0.0001218,2]
[333020576,1721754639172,-1656.406451,0.0001218,2]
[333020578,1721754639181,-181.861412,0.0001218,2]
[333020580,1721754639191,-366.782039,0.0001218,2]
[333020581,1721754639200,-366.782039,0.0001218,2]
[333020582,1721754639210,-173.910764,0.0001218,2]
[333020583,1721754639219,-173.910764,0.0001218,2]
[333020584,1721754639228,-206.6667486,0.000122,2]
[333020585,1721754639237,-206.6667486,0.000122,2]
[333020586,1721754639247,-36532.61331517,0.00012311,2]
[333020587,1721754639259,-584.23346426,0.00012311,2]
[333020588,1721754639270,-592.80619873,0.00012311,2]
[333020605,1721754640431,-62021.16760774,0.00012311,2]
[333020606,1721754640441,-620.55326,0.00012321,2]
[333020607,1721754640451,-620.55326,0.00012321,2]
[333020608,1721754640460,-222.707262,0.00012321,2]
[333020609,1721754640470,-167.191849,0.00012321,2]
[333020610,1721754640479,-151.0,0.00012321,2]
[333020611,1721754640488,-167.191849,0.00012321,2]
[333020612,1721754640498,-151.0,0.00012321,2]
[333020613,1721754640507,-151.0,0.00012321,2]
[333020614,1721754640517,-275.633339,0.00012321,2]
[333020615,1721754640527,-275.633339,0.00012321,2]
[333020616,1721754640536,-275.633339,0.00012321,2]
[333020617,1721754640546,-275.633339,0.00012321,2]
[333020618,1721754640555,-2591.601626,0.00012321,2]
[333020619,1721754640565,-2591.601626,0.00012321,2]
[333020620,1721754640574,-346.629972,0.00012321,2]
[333020621,1721754640583,-346.629972,0.00012321,2]
[333020622,1721754640592,-346.629972,0.00012321,2]
[333020623,1721754640603,-346.629972,0.00012321,2]
[333020624,1721754640613,-960.822296,0.00012321,2]
[333020625,1721754640622,-960.822296,0.00012321,2]
[333020626,1721754640631,-960.822296,0.00012321,2]
[333020627,1721754640641,-960.822296,0.00012321,2]
[333020628,1721754640651,-1656.406451,0.00012321,2]
[333020629,1721754640660,-1656.406451,0.00012321,2]
[333020630,1721754640670,-1656.406451,0.00012321,2]
[333020631,1721754640680,-1656.406451,0.00012321,2]
[333020632,1721754640691,-366.782039,0.00012321,2]
[333020633,1721754640700,-366.782039,0.00012321,2]
[333020634,1721754640713,-366.782039,0.00012321,2]
[333020635,1721754640722,-366.782039,0.00012321,2]
[333020636,1721754640732,-173.910764,0.00012321,2]
[333020637,1721754640741,-173.910764,0.00012321,2]
[333020638,1721754640751,-173.910764,0.00012321,2]
[333020639,1721754640761,-173.910764,0.00012321,2]
[333020640,1721754640770,-153.0,0.00012478,2]
[333020641,1721754640779,-153.0,0.00012478,2]
[333020642,1721754640790,-153.0,0.00012478,2]
[333020643,1721754640799,-153.0,0.00012578,2]
[333020644,1721754640808,-532.1174367,0.00012678,2]
[333020645,1721754640817,-306.0,0.00012864,2]
[333020646,1721754640826,-252.32506,0.00012864,2]
[333020647,1721754640835,-151.0,0.00012864,2]
[333020648,1721754640845,-151.0,0.00012864,2]
[333020649,1721754640854,-153.0,0.000129,2]
[333020650,1721754640864,-153.0,0.000129,2]
[333020651,1721754640874,-153.0,0.000129,2]
[333020652,1721754640883,-1018.78975107,0.0001293,2]
[333020653,1721754640893,-823.0,0.00012943,2]
[333020654,1721754640903,-2000.0,0.0001327,2]
[333020655,1721754640912,-193.0377679,0.0001328,2]
[333020656,1721754640923,-2591.601626,0.00013307,2]
[333020657,1721754640933,-2591.601626,0.00013307,2]
[333020658,1721754640942,-366.782039,0.00013307,2]
[333020659,1721754640954,-366.782046,0.00013307,2]
[333020660,1721754640963,-173.910764,0.00013307,2]
[333020661,1721754640973,-173.910763,0.00013307,2]
[333020662,1721754640982,-193.03776786,0.00013355,2]
[333020663,1721754640991,-275.633339,0.0001337,2]
[333020664,1721754641001,-275.633339,0.0001337,2]
[333020665,1721754641011,-2591.601626,0.0001337,2]
[333020666,1721754641021,-2591.601626,0.0001337,2]
[333020667,1721754641030,-346.629972,0.0001337,2]
[333020668,1721754641040,-346.629972,0.0001337,2]
[333020669,1721754641050,-960.822296,0.0001337,2]
[333020670,1721754641060,-960.822296,0.0001337,2]
[333020671,1721754641069,-99730.8205859,0.0001337,2]
[333020672,1721754641078,-1656.406451,0.0001337,2]
[333020673,1721754641087,-1656.406451,0.0001337,2]
[333020674,1721754641097,-4500.0,0.0001338,2]
[333020675,1721754641107,-151.0,0.0001338,2]
[333020676,1721754641116,-151.0,0.0001338,2]
[333020677,1721754641126,-151.0,0.0001338,2]
[333020678,1721754641135,-151.0,0.0001338,2]
[333020679,1721754641144,-151.0,0.0001338,2]
[333020680,1721754641154,-151.0,0.0001338,2]
[333020681,1721754641164,-229.524074,0.0001338,2]
[333020682,1721754641177,-229.524074,0.0001338,2]
[333020683,1721754641187,-626.570546,0.0001338,2]
[333020684,1721754641197,-626.570546,0.0001338,2]
[333020685,1721754641206,-626.570546,0.0001338,2]
[333020686,1721754641215,-626.570546,0.0001338,2]
[333020687,1721754641224,-151.0,0.0001338,2]
[333020688,1721754641234,-151.0,0.0001338,2]
[333020689,1721754641243,-151.0,0.0001338,2]
[333020690,1721754641253,-151.0,0.0001338,2]
[333020691,1721754641262,-151.0,0.0001338,2]
[333020692,1721754641272,-151.0,0.0001338,2]
[333020693,1721754641282,-620.55326,0.0001338,2]
[333020694,1721754641292,-620.55326,0.0001338,2]
[333020695,1721754641302,-620.55326,0.0001338,2]
[333020696,1721754641312,-620.55326,0.0001338,2]
[333020697,1721754641321,-620.55326,0.0001338,2]
[333020698,1721754641330,-620.55326,0.0001338,2]
[333020699,1721754641339,-620.55326,0.0001338,2]
[333020700,1721754641348,-620.55326,0.0001338,2]
[333020701,1721754641357,-620.55326,0.0001338,2]
[333020702,1721754641366,-620.55326,0.0001338,2]
[333020703,1721754641375,-620.55326,0.0001338,2]
[333020704,1721754641385,-620.553256,0.0001338,2]
[333020705,1721754641394,-167.191849,0.0001338,2]
[333020706,1721754641403,-167.191849,0.0001338,2]
[333020707,1721754641413,-151.0,0.0001338,2]
[333020708,1721754641425,-167.191849,0.0001338,2]
[333020709,1721754641434,-151.0,0.0001338,2]
[333020710,1721754641444,-151.0,0.0001338,2]
[333020711,1721754641453,-167.191849,0.0001338,2]
[333020712,1721754641463,-151.0,0.0001338,2]
[333020713,1721754641472,-167.191849,0.0001338,2]
[333020714,1721754641481,-151.0,0.0001338,2]
[333020715,1721754641490,-167.191849,0.0001338,2]
[333020716,1721754641500,-151.0,0.0001338,2]
[333020717,1721754641509,-167.191849,0.0001338,2]
[333020718,1721754641518,-167.191849,0.0001338,2]
[333020719,1721754641527,-167.191849,0.0001338,2]
[333020720,1721754641536,-151.0,0.0001338,2]
[333020721,1721754641546,-168.31331,0.0001338,2]
[333020722,1721754641556,-167.191849,0.0001338,2]
[333020723,1721754641565,-167.191849,0.0001338,2]
[333020724,1721754641575,-167.191847,0.0001338,2]
[333020725,1721754641585,-151.0,0.0001338,2]
[333020726,1721754641595,-151.0,0.0001338,2]
[333020727,1721754641605,-197.30075,0.0001338,2]
[333020728,1721754641616,-275.633339,0.0001338,2]
[333020729,1721754641626,-275.633339,0.0001338,2]
[333020730,1721754641636,-275.633339,0.0001338,2]
[333020731,1721754641646,-275.633339,0.0001338,2]
[333020732,1721754641655,-275.633339,0.0001338,2]
[333020733,1721754641666,-275.633346,0.0001338,2]
[333020734,1721754641679,-2591.601626,0.0001338,2]
[333020735,1721754641690,-2591.601626,0.0001338,2]
[333020736,1721754641701,-2591.601626,0.0001338,2]
[333020737,1721754641710,-2591.601626,0.0001338,2]
[333020738,1721754641720,-2591.601626,0.0001338,2]
[333020739,1721754641730,-2591.601636,0.0001338,2]
[333020740,1721754641743,-346.629972,0.0001338,2]
[333020741,1721754641754,-346.629972,0.0001338,2]
[333020742,1721754641765,-346.629972,0.0001338,2]
[333020743,1721754641778,-346.629972,0.0001338,2]
[333020744,1721754641787,-346.629972,0.0001338,2]
[333020745,1721754641798,-346.629976,0.0001338,2]
[333020746,1721754641808,-960.822296,0.0001338,2]
[333020747,1721754641820,-960.822296,0.0001338,2]
[333020748,1721754641831,-960.822296,0.0001338,2]
[333020749,1721754641843,-960.822296,0.0001338,2]
[333020750,1721754641854,-960.822296,0.0001338,2]
[333020751,1721754641866,-960.822294,0.0001338,2]
[333020752,1721754641875,-1656.406451,0.0001338,2]
[333020753,1721754641886,-1656.406451,0.0001338,2]
[333020754,1721754641898,-1656.406451,0.0001338,2]
[333020755,1721754641908,-1656.406451,0.0001338,2]
[333020756,1721754641918,-1656.406451,0.0001338,2]
[333020757,1721754641931,-1656.406446,0.0001338,2]
[333020758,1721754641940,-200.0,0.00013425,2]
[333020759,1721754641950,-193.03776786,0.00013429,2]
[333020760,1721754641959,-151.0,0.000135,2]
[333020761,1721754641971,-736.75996205,0.00013501,2]
[333020762,1721754641981,-193.03776786,0.00013504,2]
[333020763,1721754641991,-233.1862026,0.00013551,2]
[333020764,1721754642002,-10286.64285191,0.0001357,2]
[333020765,1721754642021,-728.23,0.0001357,2]
[333020801,1721754643574,-401.59727644,0.0001357,2]
[333020844,1721754646577,-273.37336231,9.9e-05,2]
[333020845,1721754646588,-8424.79066339,0.0001357,2]
[333020846,1721754646653,-1775.125,0.0001357,2]
[333020848,1721754646666,-3300.0,0.0001357,2]
[333020850,1721754646681,-642.5,0.0001357,2]
[333020852,1721754646694,-74171.93479416,0.0001357,2]
[333020854,1721754646707,-639.93948755,0.00013577,2]
[333020856,1721754646718,-151.0,0.00013578,2]
[333020858,1721754646728,-151.0,0.00013578,2]
[333020860,1721754646740,-229.524074,0.00013578,2]
[333020862,1721754646751,-626.570546,0.00013578,2]
[333020863,1721754646760,-626.570546,0.00013578,2]
[333020865,1721754646771,-151.0,0.00013578,2]
[333020867,1721754646785,-289.934664,0.00013578,2]
[333020869,1721754646795,-193.03776786,0.00013578,2]
[333020870,1721754646804,-16515.30336841,0.0001358,2]
[333020871,1721754646815,-151.0,0.00013589,2]
[333020872,1721754646825,-151.0,0.00013589,2]
[333020873,1721754646836,-151.0,0.00013589,2]
[333020874,1721754646846,-151.0,0.00013598,2]
[333020875,1721754646857,-151.0,0.00013601,2]
[333020876,1721754646867,-155.0,0.0001361,2]
[333020877,1721754646876,-221.428438,0.00013611,2]
[333020878,1721754646888,-221.428438,0.00013611,2]
[333020879,1721754646898,-151.0,0.00013611,2]
[333020880,1721754646908,-151.0,0.00013611,2]
[333020881,1721754646918,-238.741733,0.00013611,2]
[333020882,1721754646934,-160.319067,0.00013611,2]
[333020883,1721754646944,-151.0,0.00013611,2]
[333020884,1721754646953,-151.0,0.00013611,2]
[333020885,1721754646962,-151.0,0.00013611,2]
[333020886,1721754646971,-151.0,0.00013611,2]
[333020887,1721754646980,-151.0,0.00013611,2]
[333020888,1721754646989,-151.0,0.00013611,2]
[333020889,1721754646998,-229.524074,0.00013611,2]
[333020890,1721754647007,-229.524074,0.00013611,2]
[333020891,1721754647017,-229.524074,0.00013611,2]
[333020892,1721754647026,-229.524074,0.00013611,2]
[333020893,1721754647035,-626.570546,0.00013611,2]
[333020894,1721754647045,-626.570546,0.00013611,2]
[333020895,1721754647056,-626.570546,0.00013611,2]
[333020896,1721754647066,-626.570546,0.00013611,2]
[333020897,1721754647075,-626.570546,0.00013611,2]
[333020898,1721754647084,-626.570546,0.00013611,2]
[333020899,1721754647093,-626.570546,0.00013611,2]
[333020900,1721754647102,-626.570546,0.00013611,2]
[333020901,1721754647112,-151.0,0.00013611,2]
[333020902,1721754647122,-151.0,0.00013611,2]
[333020903,1721754647133,-157.212796,0.00013635,2]
[333020904,1721754647143,-229.524074,0.00013635,2]
[333020905,1721754647153,-229.524074,0.00013635,2]